[Event "Early Titled Tuesday Blitz | February 8 2022"]
[White "Mohammed, Dilshad"]
[Black "Shuvalov, Evgenij"]
[WhiteFideId "5050421"]
[BlackFideId "4187237"]
[WhiteElo "2153"]
[BlackElo "2119"]
[Result "1/2-1/2"]
[Round "07"]
[TimeControl "180+1"]
[Date "2022.02.08"]
[WhiteClock "0:00:08"]
[BlackClock "0:00:05"]

1. Nf3 {[%clk 0:02:59]}  Nf6 {[%clk 0:02:59]} 2. c4 {[%clk 0:02:59]}  g6 {[%clk 0:02:58]} 3. Nc3 {[%clk 0:02:59]}  d5 {[%clk 0:02:58]} 4. cxd5 {[%clk 0:02:59]}  Nxd5 {[%clk 0:02:59]} 5. Qa4+ {[%clk 0:02:59]}  Nc6 {[%clk 0:02:58]} 6. Qb3 {[%clk 0:03:00]}  Ndb4 {[%clk 0:02:47]} 7. d4 {[%clk 0:02:52]}  Be6 {[%clk 0:02:40]} 8. Qd1 {[%clk 0:02:52]}  Nxd4 {[%clk 0:02:32]} 9. Nxd4 {[%clk 0:02:41]}  Qxd4 {[%clk 0:02:32]} 10. Qxd4 {[%clk 0:02:41]}  Nc2+ {[%clk 0:02:31]} 11. Kd1 {[%clk 0:02:38]}  Nxd4 {[%clk 0:02:31]} 12. e3 {[%clk 0:02:33]}  Nc6 {[%clk 0:02:17]} 13. Bb5 {[%clk 0:02:31]}  O-O-O+ {[%clk 0:02:17]} 14. Ke2 {[%clk 0:02:28]}  Ne5 {[%clk 0:02:06]} 15. e4 {[%clk 0:02:19]}  a6 {[%clk 0:02:01]} 16. Bf4 {[%clk 0:02:20]}  axb5 {[%clk 0:01:44]} 17. Bxe5 {[%clk 0:02:19]}  f6 {[%clk 0:01:44]} 18. Bg3 {[%clk 0:02:12]}  b4 {[%clk 0:01:43]} 19. Na4 {[%clk 0:01:59]}  Bc4+ {[%clk 0:01:40]} 20. Ke1 {[%clk 0:01:58]}  Bh6 {[%clk 0:01:31]} 21. f4 {[%clk 0:01:54]}  e5 {[%clk 0:01:20]} 22. Rc1 {[%clk 0:01:50]}  Bb5 {[%clk 0:01:14]} 23. Nb6+ {[%clk 0:01:37]}  Kb8 {[%clk 0:01:14]} 24. Nd5 {[%clk 0:01:37]}  c6 {[%clk 0:01:10]} 25. Nxf6 {[%clk 0:01:32]}  exf4 {[%clk 0:01:08]} 26. Bf2 {[%clk 0:01:32]}  f3 {[%clk 0:01:05]} 27. Rc2 {[%clk 0:01:16]}  Bd3 {[%clk 0:01:02]} 28. Bg3+ {[%clk 0:01:09]}  Ka8 {[%clk 0:01:00]} 29. Rc5 {[%clk 0:01:06]}  fxg2 {[%clk 0:00:44]} 30. Rg1 {[%clk 0:01:03]}  Ka7 {[%clk 0:00:38]} 31. Rxg2 {[%clk 0:00:59]}  Kb6 {[%clk 0:00:37]} 32. Bf2 {[%clk 0:00:55]}  Kc7 {[%clk 0:00:32]} 33. Rg3 {[%clk 0:00:48]}  Bf4 {[%clk 0:00:30]} 34. Nd5+ {[%clk 0:00:45]}  Rxd5 {[%clk 0:00:28]} 35. exd5 {[%clk 0:00:44]}  Bxg3 {[%clk 0:00:27]} 36. Bxg3+ {[%clk 0:00:39]}  Kb6 {[%clk 0:00:28]} 37. Bf2 {[%clk 0:00:39]}  Re8+ {[%clk 0:00:26]} 38. Kd1 {[%clk 0:00:39]}  Kc7 {[%clk 0:00:17]} 39. Bg3+ {[%clk 0:00:38]}  Kd7 {[%clk 0:00:18]} 40. d6 {[%clk 0:00:35]}  Re2 {[%clk 0:00:16]} 41. Ra5 {[%clk 0:00:31]}  Rxb2 {[%clk 0:00:13]} 42. Ra7 {[%clk 0:00:31]}  Ba6 {[%clk 0:00:12]} 43. Ra8 {[%clk 0:00:31]}  Rxa2 {[%clk 0:00:11]} 44. Rh8 {[%clk 0:00:32]}  Ra1+ {[%clk 0:00:10]} 45. Kd2 {[%clk 0:00:31]}  Rf1 {[%clk 0:00:11]} 46. Rxh7+ {[%clk 0:00:31]}  Ke6 {[%clk 0:00:10]} 47. Re7+ {[%clk 0:00:30]}  Kf6 {[%clk 0:00:10]} 48. Re3 {[%clk 0:00:21]}  Rf5 {[%clk 0:00:09]} 49. Kc2 {[%clk 0:00:14]}  Rd5 {[%clk 0:00:09]} 50. Rf3+ {[%clk 0:00:11]}  Ke6 {[%clk 0:00:09]} 51. Re3+ {[%clk 0:00:11]}  Kf5 {[%clk 0:00:08]} 52. Re7 {[%clk 0:00:10]}  c5 {[%clk 0:00:08]} 53. d7 {[%clk 0:00:10]}  Bb5 {[%clk 0:00:07]} 54. Rf7+ {[%clk 0:00:10]}  Kg4 {[%clk 0:00:07]} 55. Rg7 {[%clk 0:00:09]}  Rxd7 {[%clk 0:00:07]} 56. Rxg6+ {[%clk 0:00:10]}  Kf3 {[%clk 0:00:07]} 57. Rf6+ {[%clk 0:00:10]}  Kg2 {[%clk 0:00:07]} 58. Rf2+ {[%clk 0:00:10]}  Kh3 {[%clk 0:00:07]} 59. Rf5 {[%clk 0:00:10]}  Ba4+ {[%clk 0:00:07]} 60. Kb2 {[%clk 0:00:09]}  b6 {[%clk 0:00:07]} 61. Rh5+ {[%clk 0:00:08]}  Kg4 {[%clk 0:00:07]} 62. Rh8 {[%clk 0:00:08]}  Rd2+ {[%clk 0:00:06]} 63. Kc1 {[%clk 0:00:08]}  Rc2+ {[%clk 0:00:06]} 64. Kb1 {[%clk 0:00:08]}  b3 {[%clk 0:00:06]} 65. Rh4+ {[%clk 0:00:08]}  Kf3 {[%clk 0:00:06]} 66. Rxa4 {[%clk 0:00:08]}  c4 {[%clk 0:00:05]} 67. Be5 {[%clk 0:00:07]}  Re2 {[%clk 0:00:04]} 68. Bc3 {[%clk 0:00:06]}  b5 {[%clk 0:00:02]} 69. Ra8 {[%clk 0:00:06]}  Rc2 {[%clk 0:00:02]} 70. Bd4 {[%clk 0:00:06]}  Ke4 {[%clk 0:00:03]} 71. Rd8 {[%clk 0:00:05]}  Kd3 {[%clk 0:00:04]} 72. Bb2+ {[%clk 0:00:05]}  Ke4 {[%clk 0:00:05]} 73. Rd4+ {[%clk 0:00:05]}  Ke3 {[%clk 0:00:05]} 74. Rd8 {[%clk 0:00:03]}  b4 {[%clk 0:00:05]} 75. Re8+ {[%clk 0:00:03]}  Kf3 {[%clk 0:00:05]} 76. Rf8+ {[%clk 0:00:03]}  Kg2 {[%clk 0:00:05]} 77. Rf4 {[%clk 0:00:03]}  c3 {[%clk 0:00:05]} 78. Rxb4 {[%clk 0:00:03]}  Rxb2+ {[%clk 0:00:05]} 79. Kc1 {[%clk 0:00:04]}  Kxh2 {[%clk 0:00:05]} 80. Rc4 {[%clk 0:00:04]}  Rc2+ {[%clk 0:00:06]} 81. Kb1 {[%clk 0:00:04]}  Kg3 {[%clk 0:00:07]} 82. Rb4 {[%clk 0:00:04]}  Rb2+ {[%clk 0:00:07]} 83. Kc1 {[%clk 0:00:04]}  Kf3 {[%clk 0:00:08]} 84. Rb8 {[%clk 0:00:05]}  Ke3 {[%clk 0:00:07]} 85. Re8+ {[%clk 0:00:05]}  Kd3 {[%clk 0:00:08]} 86. Rd8+ {[%clk 0:00:06]}  Kc4 {[%clk 0:00:08]} 87. Rc8+ {[%clk 0:00:06]}  Kd4 {[%clk 0:00:08]} 88. Rd8+ {[%clk 0:00:07]}  Ke5 {[%clk 0:00:08]} 89. Re8+ {[%clk 0:00:07]}  Kd6 {[%clk 0:00:09]} 90. Rc8 {[%clk 0:00:07]}  Rc2+ {[%clk 0:00:08]} 91. Kb1 {[%clk 0:00:08]}  Kd7 {[%clk 0:00:08]} 92. Rc4 {[%clk 0:00:07]}  Kd6 {[%clk 0:00:08]} 93. Rb4 {[%clk 0:00:07]}  Rb2+ {[%clk 0:00:08]} 94. Kc1 {[%clk 0:00:08]}  Rh2 {[%clk 0:00:08]} 95. Rxb3 {[%clk 0:00:07]}  Rh3 {[%clk 0:00:06]} 96. Kc2 {[%clk 0:00:07]}  Kd5 {[%clk 0:00:06]} 97. Rxc3 {[%clk 0:00:07]}  Rxc3+ {[%clk 0:00:05]} 98. Kxc3 {[%clk 0:00:08]} 1/2-1/2


[Site "https://www.chess.com"]

[Event "Early Titled Tuesday Blitz | February 8 2022"]
[White "Moskvin, Anatoly"]
[Black "Roman, Rodrigo"]
[WhiteFideId "24199990"]
[BlackFideId "3701220"]
[WhiteElo "2079"]
[BlackElo "2001"]
[Result "1-0"]
[Round "07"]
[TimeControl "180+1"]
[Date "2022.02.08"]
[WhiteClock "0:00:11"]
[BlackClock "0:00:38"]

1. e4 {[%clk 0:03:00]}  e5 {[%clk 0:02:59]} 2. Nf3 {[%clk 0:03:00]}  Nc6 {[%clk 0:02:59]} 3. Bc4 {[%clk 0:03:00]}  Nf6 {[%clk 0:02:59]} 4. d3 {[%clk 0:03:00]}  Be7 {[%clk 0:02:57]} 5. c3 {[%clk 0:03:00]}  O-O {[%clk 0:02:56]} 6. Bb3 {[%clk 0:03:00]}  d5 {[%clk 0:02:56]} 7. Nbd2 {[%clk 0:03:01]}  Bg4 {[%clk 0:02:55]} 8. h3 {[%clk 0:03:01]}  Bh5 {[%clk 0:02:55]} 9. Qe2 {[%clk 0:03:00]}  Bg6 {[%clk 0:02:55]} 10. g4 {[%clk 0:02:59]}  dxe4 {[%clk 0:02:55]} 11. dxe4 {[%clk 0:02:59]}  Bc5 {[%clk 0:02:54]} 12. Rg1 {[%clk 0:02:27]}  Qe7 {[%clk 0:02:54]} 13. h4 {[%clk 0:02:26]}  h5 {[%clk 0:02:53]} 14. gxh5 {[%clk 0:02:13]}  Nxh5 {[%clk 0:02:54]} 15. Nf1 {[%clk 0:02:02]}  Kh8 {[%clk 0:02:30]} 16. Rg5 {[%clk 0:01:59]}  Qf6 {[%clk 0:02:10]} 17. Ng3 {[%clk 0:01:49]}  Nf4 {[%clk 0:02:10]} 18. Bxf4 {[%clk 0:01:35]}  Qxf4 {[%clk 0:02:10]} 19. Nf5 {[%clk 0:01:33]}  Rad8 {[%clk 0:02:00]} 20. h5 {[%clk 0:01:13]}  Bh7 {[%clk 0:01:35]} 21. Rd1 {[%clk 0:00:36]}  f6 {[%clk 0:01:34]} 22. Rg6 {[%clk 0:00:30]}  Rxd1+ {[%clk 0:01:28]} 23. Kxd1 {[%clk 0:00:30]}  Rd8+ {[%clk 0:01:27]} 24. Kc2 {[%clk 0:00:29]}  Bxg6 {[%clk 0:01:27]} 25. hxg6 {[%clk 0:00:29]}  Ne7 {[%clk 0:01:16]} 26. Nxe5 {[%clk 0:00:24]}  Nxf5 {[%clk 0:00:56]} 27. Nf7+ {[%clk 0:00:23]}  Kg8 {[%clk 0:00:56]} 28. Nxd8+ {[%clk 0:00:23]}  Kh8 {[%clk 0:00:55]} 29. Qh5+ {[%clk 0:00:13]}  Nh6 {[%clk 0:00:45]} 30. Nf7+ {[%clk 0:00:12]}  Kg8 {[%clk 0:00:43]} 31. Nxh6+ {[%clk 0:00:13]}  Kf8 {[%clk 0:00:44]} 32. Qxc5+ {[%clk 0:00:13]}  Ke8 {[%clk 0:00:44]} 33. Bf7+ {[%clk 0:00:13]}  Kd7 {[%clk 0:00:41]} 34. Qd4+ {[%clk 0:00:12]}  Kc6 {[%clk 0:00:38]} 35. Be8# {[%clk 0:00:11]} 1-0


[Site "https://www.chess.com"]

[Event "Early Titled Tuesday Blitz | February 8 2022"]
[White "Niemann, Hans Moke"]
[Black "Lashkin, Jegor"]
[WhiteFideId "2093596"]
[BlackFideId "13907808"]
[WhiteElo "2636"]
[BlackElo "2344"]
[Result "1-0"]
[Round "07"]
[TimeControl "180+1"]
[Date "2022.02.08"]
[WhiteClock "0:01:52"]
[BlackClock "0:00:15"]

1. d4 {[%clk 0:03:00]}  Nf6 {[%clk 0:03:00]} 2. Nc3 {[%clk 0:03:00]}  d5 {[%clk 0:03:00]} 3. Bf4 {[%clk 0:03:00]}  e6 {[%clk 0:02:58]} 4. Nb5 {[%clk 0:02:59]}  Na6 {[%clk 0:02:58]} 5. e3 {[%clk 0:02:59]}  Be7 {[%clk 0:02:54]} 6. Nf3 {[%clk 0:02:57]}  O-O {[%clk 0:02:54]} 7. c4 {[%clk 0:02:47]}  c6 {[%clk 0:02:49]} 8. Nc3 {[%clk 0:02:46]}  Nc7 {[%clk 0:02:25]} 9. Rc1 {[%clk 0:02:42]}  h6 {[%clk 0:02:19]} 10. h3 {[%clk 0:02:38]}  dxc4 {[%clk 0:02:05]} 11. Bxc4 {[%clk 0:02:38]}  Ncd5 {[%clk 0:02:06]} 12. Bh2 {[%clk 0:02:37]}  b6 {[%clk 0:02:06]} 13. O-O {[%clk 0:02:36]}  Bb7 {[%clk 0:02:06]} 14. Qe2 {[%clk 0:02:36]}  c5 {[%clk 0:01:42]} 15. Rfd1 {[%clk 0:02:35]}  cxd4 {[%clk 0:01:38]} 16. Nxd4 {[%clk 0:02:33]}  Rc8 {[%clk 0:01:35]} 17. Ncb5 {[%clk 0:02:26]}  a6 {[%clk 0:01:26]} 18. Na7 {[%clk 0:02:26]}  Ra8 {[%clk 0:01:13]} 19. Nac6 {[%clk 0:02:21]}  Qe8 {[%clk 0:01:11]} 20. e4 {[%clk 0:02:20]}  Nb4 {[%clk 0:01:01]} 21. Nxe7+ {[%clk 0:02:12]}  Qxe7 {[%clk 0:01:02]} 22. a3 {[%clk 0:02:11]}  Nc6 {[%clk 0:00:55]} 23. Nxc6 {[%clk 0:02:11]}  Bxc6 {[%clk 0:00:56]} 24. Bd6 {[%clk 0:02:11]}  Qb7 {[%clk 0:00:56]} 25. Bxf8 {[%clk 0:02:11]}  Rxf8 {[%clk 0:00:56]} 26. Bxa6 {[%clk 0:02:10]}  Qa8 {[%clk 0:00:56]} 27. f3 {[%clk 0:02:09]}  e5 {[%clk 0:00:49]} 28. Bb5 {[%clk 0:02:09]}  Bb7 {[%clk 0:00:49]} 29. Rc7 {[%clk 0:02:08]}  Qb8 {[%clk 0:00:42]} 30. Qc2 {[%clk 0:02:06]}  Bc8 {[%clk 0:00:39]} 31. Qc6 {[%clk 0:02:01]}  Be6 {[%clk 0:00:36]} 32. Qb7 {[%clk 0:02:01]}  Rd8 {[%clk 0:00:30]} 33. Qxb8 {[%clk 0:01:59]}  Rxb8 {[%clk 0:00:31]} 34. Bc4 {[%clk 0:01:56]}  Ne8 {[%clk 0:00:29]} 35. Rc6 {[%clk 0:01:56]}  Bxc4 {[%clk 0:00:25]} 36. Rxc4 {[%clk 0:01:55]}  Kf8 {[%clk 0:00:26]} 37. Rd7 {[%clk 0:01:53]}  Nf6 {[%clk 0:00:23]} 38. Ra7 {[%clk 0:01:53]}  Ne8 {[%clk 0:00:23]} 39. Rc6 {[%clk 0:01:52]}  Kg8 {[%clk 0:00:21]} 40. b4 {[%clk 0:01:52]}  b5 {[%clk 0:00:20]} 41. Rc5 {[%clk 0:01:52]}  f6 {[%clk 0:00:20]} 42. Rd5 {[%clk 0:01:52]}  Kf8 {[%clk 0:00:20]} 43. Rdd7 {[%clk 0:01:51]}  Rc8 {[%clk 0:00:20]} 44. Rf7+ {[%clk 0:01:51]}  Kg8 {[%clk 0:00:21]} 45. Rfb7 {[%clk 0:01:52]}  Kf8 {[%clk 0:00:14]} 46. Rxb5 {[%clk 0:01:52]}  Nd6 {[%clk 0:00:14]} 47. Rc5 {[%clk 0:01:51]}  Rb8 {[%clk 0:00:14]} 48. Rcc7 {[%clk 0:01:51]}  Nb5 {[%clk 0:00:14]} 49. Rf7+ {[%clk 0:01:51]}  Ke8 {[%clk 0:00:14]} 50. Rae7+ {[%clk 0:01:51]}  Kd8 {[%clk 0:00:15]} 51. Rxg7 {[%clk 0:01:52]} 1-0


[Site "https://www.chess.com"]

[Event "Early Titled Tuesday Blitz | February 8 2022"]
[White "Niyazgulova, Marina"]
[Black "Blokhin, Sofia"]
[WhiteFideId "24142573"]
[BlackFideId "4508190"]
[WhiteElo "2075"]
[BlackElo "1762"]
[Result "1-0"]
[Round "07"]
[TimeControl "180+1"]
[Date "2022.02.08"]
[WhiteClock "0:00:29"]
[BlackClock "0:00:03"]

1. d4 {[%clk 0:03:00]}  f5 {[%clk 0:02:58]} 2. c4 {[%clk 0:02:59]}  e6 {[%clk 0:02:58]} 3. g3 {[%clk 0:02:57]}  Nf6 {[%clk 0:02:58]} 4. Bg2 {[%clk 0:02:57]}  d5 {[%clk 0:02:57]} 5. Nc3 {[%clk 0:02:55]}  c6 {[%clk 0:02:56]} 6. Nf3 {[%clk 0:02:55]}  Be7 {[%clk 0:02:55]} 7. Bf4 {[%clk 0:02:51]}  O-O {[%clk 0:02:53]} 8. O-O {[%clk 0:02:49]}  Ne4 {[%clk 0:02:53]} 9. Be5 {[%clk 0:02:15]}  Nd7 {[%clk 0:02:49]} 10. Nd2 {[%clk 0:02:04]}  Nxc3 {[%clk 0:02:46]} 11. bxc3 {[%clk 0:02:03]}  Nxe5 {[%clk 0:02:46]} 12. dxe5 {[%clk 0:02:03]}  f4 {[%clk 0:02:35]} 13. cxd5 {[%clk 0:01:54]}  exd5 {[%clk 0:02:33]} 14. c4 {[%clk 0:01:54]}  fxg3 {[%clk 0:02:21]} 15. hxg3 {[%clk 0:01:53]}  Be6 {[%clk 0:02:15]} 16. cxd5 {[%clk 0:01:37]}  cxd5 {[%clk 0:02:07]} 17. Nb3 {[%clk 0:01:30]}  Qd7 {[%clk 0:01:59]} 18. Nd4 {[%clk 0:01:30]}  Bh3 {[%clk 0:01:52]} 19. e6 {[%clk 0:01:13]}  Qd6 {[%clk 0:00:48]} 20. Bxh3 {[%clk 0:01:12]}  Bf6 {[%clk 0:00:48]} 21. Rc1 {[%clk 0:01:05]}  Qe5 {[%clk 0:00:39]} 22. Nf3 {[%clk 0:00:45]}  Qh5 {[%clk 0:00:38]} 23. Bg2 {[%clk 0:00:45]}  Rfe8 {[%clk 0:00:28]} 24. Rc5 {[%clk 0:00:43]}  Rad8 {[%clk 0:00:24]} 25. Nd4 {[%clk 0:00:38]}  Qe5 {[%clk 0:00:16]} 26. Nb3 {[%clk 0:00:30]}  b6 {[%clk 0:00:07]} 27. Rxd5 {[%clk 0:00:30]}  Rxd5 {[%clk 0:00:04]} 28. Qxd5 {[%clk 0:00:29]}  Qxd5 {[%clk 0:00:03]} 29. Bxd5 {[%clk 0:00:29]} 1-0


[Site "https://www.chess.com"]

[Event "Early Titled Tuesday Blitz | February 8 2022"]
[White "Odegov, Artem"]
[Black "Zanette, Edgard Vinicius"]
[WhiteFideId "34183644"]
[BlackFideId "2109263"]
[WhiteElo "2277"]
[BlackElo "2182"]
[Result "1/2-1/2"]
[Round "07"]
[TimeControl "180+1"]
[Date "2022.02.08"]
[WhiteClock "0:00:21"]
[BlackClock "0:00:13"]

1. d4 {[%clk 0:03:00]}  d5 {[%clk 0:02:54]} 2. c4 {[%clk 0:02:57]}  c6 {[%clk 0:02:55]} 3. Nf3 {[%clk 0:02:57]}  Nf6 {[%clk 0:02:54]} 4. Nc3 {[%clk 0:02:57]}  e6 {[%clk 0:02:52]} 5. Bg5 {[%clk 0:02:56]}  Nbd7 {[%clk 0:02:50]} 6. e3 {[%clk 0:02:54]}  Bb4 {[%clk 0:02:50]} 7. Qc2 {[%clk 0:02:48]}  Qa5 {[%clk 0:02:49]} 8. Nd2 {[%clk 0:02:46]}  dxc4 {[%clk 0:02:45]} 9. Bxf6 {[%clk 0:02:46]}  Nxf6 {[%clk 0:02:45]} 10. Nxc4 {[%clk 0:02:47]}  Qc7 {[%clk 0:02:30]} 11. Be2 {[%clk 0:02:46]}  O-O {[%clk 0:02:28]} 12. O-O {[%clk 0:02:45]}  b6 {[%clk 0:02:22]} 13. Bf3 {[%clk 0:02:43]}  Bb7 {[%clk 0:02:21]} 14. Rac1 {[%clk 0:02:41]}  Rac8 {[%clk 0:02:20]} 15. Ne5 {[%clk 0:02:41]}  Bd6 {[%clk 0:02:04]} 16. Nb5 {[%clk 0:01:58]}  cxb5 {[%clk 0:02:03]} 17. Qxc7 {[%clk 0:01:57]}  Rxc7 {[%clk 0:02:02]} 18. Rxc7 {[%clk 0:01:55]}  Bxc7 {[%clk 0:02:02]} 19. Bxb7 {[%clk 0:01:55]}  Bxe5 {[%clk 0:01:50]} 20. dxe5 {[%clk 0:01:50]}  Ng4 {[%clk 0:01:51]} 21. Bc6 {[%clk 0:01:40]}  Nxe5 {[%clk 0:01:49]} 22. Bxb5 {[%clk 0:01:40]}  g5 {[%clk 0:01:39]} 23. h3 {[%clk 0:01:36]}  Rc8 {[%clk 0:01:33]} 24. f4 {[%clk 0:01:24]}  gxf4 {[%clk 0:01:30]} 25. exf4 {[%clk 0:01:25]}  Ng6 {[%clk 0:01:30]} 26. f5 {[%clk 0:01:24]}  exf5 {[%clk 0:01:29]} 27. Rxf5 {[%clk 0:01:25]}  Rc2 {[%clk 0:01:29]} 28. Be8 {[%clk 0:01:21]}  Rxg2+ {[%clk 0:01:28]} 29. Kf1 {[%clk 0:01:17]}  Rxb2 {[%clk 0:01:21]} 30. Bxf7+ {[%clk 0:01:16]}  Kg7 {[%clk 0:01:21]} 31. Bb3 {[%clk 0:01:16]}  Rd2 {[%clk 0:01:14]} 32. Rf7+ {[%clk 0:01:13]}  Kh6 {[%clk 0:01:11]} 33. Rxa7 {[%clk 0:01:13]}  Rh2 {[%clk 0:01:08]} 34. Bg8 {[%clk 0:01:12]}  Kg5 {[%clk 0:01:02]} 35. Bxh7 {[%clk 0:00:55]}  Nf4 {[%clk 0:00:42]} 36. Rg7+ {[%clk 0:00:50]}  Kh6 {[%clk 0:00:35]} 37. Rb7 {[%clk 0:00:49]}  Rxa2 {[%clk 0:00:32]} 38. Bg8 {[%clk 0:00:39]}  Rb2 {[%clk 0:00:32]} 39. Bc4 {[%clk 0:00:34]}  Nxh3 {[%clk 0:00:30]} 40. Ke1 {[%clk 0:00:32]}  Nf4 {[%clk 0:00:29]} 41. Kd1 {[%clk 0:00:32]}  Kg5 {[%clk 0:00:28]} 42. Kc1 {[%clk 0:00:32]}  Rb4 {[%clk 0:00:28]} 43. Bf1 {[%clk 0:00:32]}  Kf6 {[%clk 0:00:27]} 44. Kc2 {[%clk 0:00:32]}  Nd5 {[%clk 0:00:24]} 45. Be2 {[%clk 0:00:28]}  Ke5 {[%clk 0:00:21]} 46. Bf3 {[%clk 0:00:28]}  Kd6 {[%clk 0:00:12]} 47. Bxd5 {[%clk 0:00:24]}  Kxd5 {[%clk 0:00:12]} 48. Kc3 {[%clk 0:00:25]}  Rb5 {[%clk 0:00:11]} 49. Rh7 {[%clk 0:00:25]}  Rc5+ {[%clk 0:00:11]} 50. Kb4 {[%clk 0:00:25]}  Rc6 {[%clk 0:00:09]} 51. Rh5+ {[%clk 0:00:25]}  Kd6 {[%clk 0:00:09]} 52. Rh4 {[%clk 0:00:25]}  Kc7 {[%clk 0:00:10]} 53. Kb5 {[%clk 0:00:25]}  Rd6 {[%clk 0:00:09]} 54. Rh7+ {[%clk 0:00:24]}  Rd7 {[%clk 0:00:10]} 55. Rh6 {[%clk 0:00:23]}  Rd6 {[%clk 0:00:10]} 56. Rh5 {[%clk 0:00:24]}  Rd7 {[%clk 0:00:10]} 57. Rh4 {[%clk 0:00:22]}  Rd5+ {[%clk 0:00:09]} 58. Kb4 {[%clk 0:00:23]}  Rd6 {[%clk 0:00:09]} 59. Rh7+ {[%clk 0:00:23]}  Kc6 {[%clk 0:00:10]} 60. Rh8 {[%clk 0:00:23]}  Rd4+ {[%clk 0:00:10]} 61. Kc3 {[%clk 0:00:24]}  Rd6 {[%clk 0:00:10]} 62. Rh5 {[%clk 0:00:24]}  b5 {[%clk 0:00:10]} 63. Kb4 {[%clk 0:00:23]}  Rd4+ {[%clk 0:00:11]} 64. Kc3 {[%clk 0:00:23]}  Rc4+ {[%clk 0:00:11]} 65. Kb3 {[%clk 0:00:24]}  Kb6 {[%clk 0:00:12]} 66. Rh8 {[%clk 0:00:23]}  Rc6 {[%clk 0:00:11]} 67. Rb8+ {[%clk 0:00:23]}  Kc5 {[%clk 0:00:12]} 68. Rh8 {[%clk 0:00:22]}  Rd6 {[%clk 0:00:12]} 69. Rh5+ {[%clk 0:00:22]}  Kb6 {[%clk 0:00:12]} 70. Kb4 {[%clk 0:00:20]}  Rd4+ {[%clk 0:00:12]} 71. Kc3 {[%clk 0:00:20]}  Rc4+ {[%clk 0:00:12]} 72. Kb3 {[%clk 0:00:21]}  Rc6 {[%clk 0:00:11]} 73. Kb4 {[%clk 0:00:20]}  Rc4+ {[%clk 0:00:12]} 74. Kb3 {[%clk 0:00:21]}  Rc7 {[%clk 0:00:12]} 75. Kb4 {[%clk 0:00:21]}  Rc4+ {[%clk 0:00:13]} 76. Kb3 {[%clk 0:00:21]} 1/2-1/2


[Site "https://www.chess.com"]

[Event "Early Titled Tuesday Blitz | February 8 2022"]
[White "Onyshchuk, Volodymyr"]
[Black "Martinez Alcantara, Jose Eduardo"]
[WhiteFideId "14114038"]
[BlackFideId "3805662"]
[WhiteElo "2642"]
[BlackElo "2690"]
[Result "0-1"]
[Round "07"]
[TimeControl "180+1"]
[Date "2022.02.08"]
[WhiteClock "0:00:07"]
[BlackClock "0:00:45"]

1. e4 {[%clk 0:03:00]}  c5 {[%clk 0:02:59]} 2. Nf3 {[%clk 0:02:57]}  d6 {[%clk 0:03:00]} 3. d4 {[%clk 0:02:55]}  cxd4 {[%clk 0:03:00]} 4. Nxd4 {[%clk 0:02:56]}  Nf6 {[%clk 0:03:01]} 5. Nc3 {[%clk 0:02:56]}  a6 {[%clk 0:03:02]} 6. a4 {[%clk 0:02:52]}  e5 {[%clk 0:03:01]} 7. Nf3 {[%clk 0:02:52]}  Be7 {[%clk 0:03:01]} 8. Bc4 {[%clk 0:02:51]}  Be6 {[%clk 0:02:57]} 9. Qe2 {[%clk 0:02:51]}  O-O {[%clk 0:02:45]} 10. O-O {[%clk 0:02:49]}  Qc8 {[%clk 0:02:39]} 11. Ba2 {[%clk 0:02:47]}  Nc6 {[%clk 0:02:37]} 12. Rd1 {[%clk 0:02:46]}  h6 {[%clk 0:02:33]} 13. Be3 {[%clk 0:02:38]}  Bxa2 {[%clk 0:02:20]} 14. Rxa2 {[%clk 0:02:38]}  Nb4 {[%clk 0:02:19]} 15. Ra3 {[%clk 0:02:37]}  Qe6 {[%clk 0:02:00]} 16. Rb3 {[%clk 0:02:32]}  a5 {[%clk 0:01:48]} 17. Bb6 {[%clk 0:02:26]}  Rfc8 {[%clk 0:01:46]} 18. Bxa5 {[%clk 0:02:21]}  Nxc2 {[%clk 0:01:42]} 19. Qxc2 {[%clk 0:02:20]}  Rxa5 {[%clk 0:01:42]} 20. Rxb7 {[%clk 0:02:20]}  d5 {[%clk 0:01:41]} 21. Qb3 {[%clk 0:01:34]}  Bf8 {[%clk 0:01:11]} 22. exd5 {[%clk 0:01:26]}  Nxd5 {[%clk 0:01:11]} 23. Nxd5 {[%clk 0:00:58]}  Rxd5 {[%clk 0:01:11]} 24. h3 {[%clk 0:00:50]}  Rxd1+ {[%clk 0:01:08]} 25. Qxd1 {[%clk 0:00:50]}  e4 {[%clk 0:01:09]} 26. Nd4 {[%clk 0:00:46]}  Qd6 {[%clk 0:01:01]} 27. g3 {[%clk 0:00:10]}  Rc4 {[%clk 0:00:52]} 28. Qh5 {[%clk 0:00:07]}  g6 {[%clk 0:00:45]} 0-1


[Site "https://www.chess.com"]

[Event "Early Titled Tuesday Blitz | February 8 2022"]
[White "Ozkan, Taha"]
[Black "Khoroshev, Nikita"]
[WhiteFideId "34577173"]
[BlackFideId "14200287"]
[WhiteElo "2024"]
[BlackElo "2354"]
[Result "0-1"]
[Round "07"]
[TimeControl "180+1"]
[Date "2022.02.08"]
[WhiteClock "0:01:08"]
[BlackClock "0:00:08"]

1. d4 {[%clk 0:02:58]}  Nf6 {[%clk 0:02:59]} 2. c4 {[%clk 0:02:59]}  e6 {[%clk 0:02:59]} 3. Nc3 {[%clk 0:02:59]}  d5 {[%clk 0:03:00]} 4. cxd5 {[%clk 0:03:00]}  exd5 {[%clk 0:03:01]} 5. Bg5 {[%clk 0:03:00]}  Bb4 {[%clk 0:03:01]} 6. Qc2 {[%clk 0:02:59]}  h6 {[%clk 0:02:53]} 7. Bxf6 {[%clk 0:02:59]}  Qxf6 {[%clk 0:02:54]} 8. a3 {[%clk 0:02:59]}  Bxc3+ {[%clk 0:02:53]} 9. Qxc3 {[%clk 0:03:00]}  Nc6 {[%clk 0:02:14]} 10. e3 {[%clk 0:02:59]}  O-O {[%clk 0:02:14]} 11. Nf3 {[%clk 0:02:58]}  Bg4 {[%clk 0:02:14]} 12. Be2 {[%clk 0:02:59]}  Bxf3 {[%clk 0:02:13]} 13. Bxf3 {[%clk 0:02:58]}  Rfe8 {[%clk 0:02:13]} 14. Bxd5 {[%clk 0:02:37]}  Nxd4 {[%clk 0:02:12]} 15. Bxb7 {[%clk 0:02:31]}  Rab8 {[%clk 0:01:44]} 16. Rd1 {[%clk 0:02:23]}  Rbd8 {[%clk 0:00:56]} 17. Kf1 {[%clk 0:01:50]}  Qb6 {[%clk 0:00:13]} 18. Rxd4 {[%clk 0:01:37]}  Qxb7 {[%clk 0:00:13]} 19. f3 {[%clk 0:01:22]}  Rxd4 {[%clk 0:00:07]} 20. Qxd4 {[%clk 0:01:23]}  c5 {[%clk 0:00:05]} 21. Qc3 {[%clk 0:01:16]}  Rb8 {[%clk 0:00:05]} 22. b4 {[%clk 0:01:05]}  cxb4 {[%clk 0:00:04]} 23. Qxb4 {[%clk 0:01:06]}  Qa6+ {[%clk 0:00:04]} 24. Kf2 {[%clk 0:01:06]}  Rxb4 {[%clk 0:00:04]} 25. axb4 {[%clk 0:01:07]}  Qa2+ {[%clk 0:00:05]} 26. Kg3 {[%clk 0:01:04]}  Qb3 {[%clk 0:00:05]} 27. Rc1 {[%clk 0:01:03]}  Qxb4 {[%clk 0:00:05]} 28. e4 {[%clk 0:01:04]}  Qd6+ {[%clk 0:00:05]} 29. Kf2 {[%clk 0:01:02]}  Qd2+ {[%clk 0:00:04]} 30. Kg3 {[%clk 0:01:02]}  Qxc1 {[%clk 0:00:05]} 31. Kf2 {[%clk 0:01:03]}  a5 {[%clk 0:00:05]} 32. e5 {[%clk 0:01:04]}  a4 {[%clk 0:00:06]} 33. f4 {[%clk 0:01:05]}  a3 {[%clk 0:00:06]} 34. g3 {[%clk 0:01:06]}  a2 {[%clk 0:00:07]} 35. e6 {[%clk 0:01:07]}  a1=Q {[%clk 0:00:07]} 36. e7 {[%clk 0:01:08]}  Qab2+ {[%clk 0:00:07]} 37. Kf3 {[%clk 0:01:08]}  Qd1+ {[%clk 0:00:07]} 38. Ke4 {[%clk 0:01:08]}  Qbd4+ {[%clk 0:00:08]} 39. Kf5 {[%clk 0:01:08]}  g6# {[%clk 0:00:08]} 0-1


[Site "https://www.chess.com"]